bitfinex-derivatives/quotes_ETHF0:USTF0_20240927
["timestamp","ask_amount","ask_price","bid_price","bid_amount"]
[1727414868103,5.9116,2645.1,2645.0,0.98976694]
[1727414869506,0.37801,2645.0,2644.9,0.98976694]
[1727414869708,1.73801,2645.0,2644.9,0.98976694]
[1727414869901,0.37803,2644.9,2644.7,2.27624981]
[1727414870102,0.37803,2644.9,2644.8,1.76807572]
[1727414870309,0.37802,2645.0,2644.8,1.76807572]
[1727414870608,0.37802,2645.0,2644.7,2.27624981]
[1727414870802,1.36,2644.9,2644.8,3.25248444]
[1727414871706,1.36,2644.9,2644.8,1.76793463]
[1727414872601,1.36,2644.9,2644.8,3.25248444]
[1727414873008,1.36,2644.9,2644.8,3.62268444]
[1727414873897,1.36,2644.9,2644.8,5.91893463]
[1727414874097,1.36,2644.9,2644.8,3.62268444]
[1727414874902,1.36,2644.9,2644.8,7.40348444]
[1727414875408,1.36,2644.9,2644.8,7.40313078]
[1727414878109,1.36,2644.9,2644.8,3.62233078]
[1727414881207,1.36,2644.9,2644.8,1.85474981]
[1727414881406,1.36,2644.9,2644.8,3.62232216]
[1727414882411,1.36,2644.9,2644.8,2.13777235]
[1727414883513,1.36,2644.9,2644.8,3.62212545]
[1727414884412,1.36,2644.9,2644.8,2.13777235]
[1727414884616,1.36,2644.9,2644.8,3.62212545]
[1727414885114,1.73802,2644.9,2644.8,3.62212545]
[1727414885306,1.73802,2644.9,2644.8,2.13777235]
[1727414885509,1.73802,2644.9,2644.8,3.62212545]
[1727414885814,1.73802,2644.9,2644.8,2.13777235]
[1727414886412,1.36,2644.9,2644.8,2.13777235]
[1727414886714,1.36,2644.9,2644.8,3.62212545]
[1727414887612,1.73802,2644.9,2644.8,3.62212545]
[1727414887815,2.14802,2644.9,2644.8,3.62212545]
[1727414889115,1.77,2644.9,2644.8,3.62212545]
[1727414889316,2.14802,2644.9,2644.8,3.62212545]
[1727414889820,2.14802,2644.9,2644.8,2.14100895]
[1727414890311,1.77,2644.9,2644.8,2.14100895]
[1727414891017,2.14802,2644.9,2644.8,2.14100895]
[1727414891518,2.14802,2644.9,2644.8,1.77080895]
[1727414894518,5.35582,2644.9,2644.8,1.77080895]
[1727414895018,0.37805,2644.8,2644.5,1.1562]
[1727414895322,1.36,2644.6,2644.5,3.1300873]
[1727414895518,1.36,2644.6,2644.5,4.90227438]
[1727414895810,0.41,2644.9,2644.5,4.90227438]
[1727414896003,0.41,2644.9,2644.6,1.77218708]
[1727414896207,0.41,2644.9,2644.7,1.77218708]
[1727414896408,1.182,2645.0,2644.8,1.77218708]
[1727414896608,1.182,2645.0,2644.9,2.56218708]
[1727414897419,2.542,2645.0,2644.9,2.56218708]
[1727414897717,2.92001,2645.0,2644.9,2.56218708]
[1727414898716,2.542,2645.0,2644.9,2.56218708]
[1727414900305,2.542,2645.0,2644.9,2.56252321]
[1727414902319,2.92001,2645.0,2644.9,1.77252321]
[1727414904019,6.12781,2645.0,2644.9,1.77252321]
[1727414905220,2.92001,2645.0,2644.9,1.77252321]
[1727414905418,1.56001,2645.0,2644.9,1.77252321]
[1727414905622,2.92001,2645.0,2644.9,1.77252321]
[1727414907020,1.56001,2645.0,2644.9,1.77252321]
[1727414907219,2.92001,2645.0,2644.9,1.77252321]
[1727414908619,1.36,2645.0,2644.9,1.77252321]
[1727414909118,1.73801,2645.0,2644.9,1.77252321]
[1727414910321,1.36,2645.0,2644.9,1.77252321]
[1727414910832,1.36,2645.0,2644.9,3.74657673]
[1727414912231,0.4044,2645.2,2644.9,7.52737673]
[1727414912431,1.5817,2645.5,2645.0,7.29191898]
[1727414912624,1.5817,2645.5,2645.1,4.52487673]
[1727414912625,0.37796,2645.4,2645.1,4.52487673]
[1727414912824,0.37797,2645.3,2645.2,2.16968943]
[1727414913128,0.37796,2645.4,2645.2,2.16968943]
[1727414913329,2.35345,2645.5,2645.3,1.77268943]
[1727414913533,2.35345,2645.5,2645.4,3.26070065]
[1727414913830,3.82176438,2645.5,2645.4,3.26070065]
[1727414914223,1.36,2645.5,2645.4,1.77268943]
[1727414915829,1.36,2645.5,2645.4,1.9738873]
[1727414916124,0.4875505,2645.9,2645.4,3.7451064]
[1727414916334,0.4875505,2645.9,2645.8,1.48693665]
[1727414916335,1.5622,2645.9,2645.8,1.48693665]
[1727414916530,1.182,2645.9,2645.8,1.7712191]
[1727414916832,1.55988,2645.9,2645.8,3.2574524]
[1727414917029,1.182,2645.9,2645.8,3.2574524]
[1727414917427,1.55988,2645.9,2645.8,3.2574524]
[1727414917632,2.91988,2645.9,2645.8,1.7712191]
[1727414917936,1.73788,2645.9,2645.8,1.7712191]
[1727414918135,1.73788,2645.9,2645.8,2.1733191]
[1727414918829,1.73788,2645.9,2645.8,0.4021]
[1727414919034,4.94568,2645.9,2645.8,0.99011076]
[1727414919431,8.91152437,2645.9,2645.8,0.99011076]
[1727414919732,0.37792,2645.7,2645.5,4.99201076]
[1727414919933,0.37792,2645.6,2645.5,4.99201076]
[1727414920329,0.78002,2645.6,2645.5,4.99201076]
[1727414920631,0.78002,2645.6,2645.5,4.0019]
[1727414922239,0.78002,2645.6,2645.5,0.7941]
[1727414923634,0.78002,2645.6,2645.4,0.4009]
[1727414923831,0.78002,2645.6,2645.3,0.99011076]
[1727414923832,0.37795,2645.4,2645.3,1.78311076]
[1727414924038,0.37795,2645.4,2645.3,0.793]
[1727414924240,1.73795,2645.5,2645.3,0.793]
[1727414924433,1.73795,2645.5,2645.3,1.78311076]
[1727414924434,0.37795,2645.4,2645.3,1.78311076]
[1727414925740,1.73795,2645.5,2645.3,1.78311076]
[1727414926038,1.36,2645.5,2645.3,1.78311076]
[1727414926428,0.37795,2645.4,2645.3,1.78311076]
[1727414927039,0.4021,2645.6,2645.3,1.78311076]
[1727414927230,0.78003,2645.6,2645.4,0.99011076]
[1727414927533,0.78003,2645.6,2645.3,1.78311076]
[1727414927534,1.36,2645.5,2645.3,1.78311076]
[1727414927936,0.37791,2645.7,2645.4,1.76568956]
[1727414928143,0.4023,2645.9,2645.5,1.76566243]
[1727414928333,0.37791,2645.7,2645.6,0.98947024]
[1727414928637,1.73791,2645.7,2645.6,0.98947024]
[1727414928834,1.73791,2645.7,2645.6,0.98938606]
[1727414929029,1.73791,2645.7,2645.5,1.37068606]
[1727414929237,0.3752,2645.6,2645.5,1.37068606]
[1727414929636,0.75312,2645.6,2645.5,1.37068606]
[1727414929938,0.75312,2645.6,2645.5,0.98938606]
[1727414930339,0.3752,2645.6,2645.5,0.98938606]
[1727414930846,0.75312,2645.6,2645.5,0.98938606]
[1727414931637,0.3752,2645.6,2645.5,0.98938606]
[1727414931836,0.75312,2645.6,2645.5,0.98938606]
[1727414932843,1.73792,2645.7,2645.4,1.8826333]
[1727414933040,0.37792,2645.7,2645.6,0.98931547]
[1727414934152,0.37792,2645.7,2645.5,0.98931547]
[1727414934339,1.36,2645.6,2645.5,0.98931547]
[1727414934541,1.36,2645.6,2645.4,0.3964]
[1727414934849,1.36,2645.6,2645.4,1.3856574]
[1727414935044,1.36,2645.6,2645.5,0.9892574]
[1727414936436,1.36,2645.6,2645.4,4.5934574]
[1727414937544,1.36,2645.6,2645.4,1.3856574]
[1727414937745,0.37794,2645.5,2645.4,0.3964]
[1727414939949,0.37795,2645.4,2645.3,0.3873]
[1727414940239,1.73795,2645.4,2645.3,0.3873]
[1727414941051,0.37795,2645.5,2645.3,0.3873]
[1727414941241,1.36,2645.4,2645.3,1.3765574]
[1727414942346,1.73795,2645.4,2645.3,1.3765574]
[1727414942547,1.36,2645.4,2645.3,1.3765574]
[1727414942747,1.73795,2645.4,2645.3,1.3765574]
[1727414942943,1.36,2645.4,2645.3,2.153101]
[1727414943341,1.73795,2645.4,2645.3,2.153101]
[1727414943547,1.36,2645.4,2645.3,2.153101]
[1727414943746,1.36,2645.4,2645.3,3.6393343]
[1727414944347,1.73795,2645.4,2645.3,3.6393343]
[1727414944651,1.73795,2645.4,2645.3,2.15329332]
[1727414945949,1.73795,2645.4,2645.3,2.15340386]
[1727414946150,1.73795,2645.4,2645.3,1.37711522]
[1727414946350,1.73795,2645.4,2645.3,2.15350191]
[1727414946550,1.73795,2645.4,2645.3,1.37720722]
[1727414946855,1.73795,2645.4,2645.3,0.3873]
[1727414947352,1.73795,2645.4,2645.3,2.15367967]
[1727414947653,1.73795,2645.4,2645.3,0.3873]
[1727414948351,1.73795,2645.4,2645.3,2.15383247]
[1727414948551,1.73795,2645.4,2645.3,0.3873]
[1727414949951,1.36,2645.4,2645.3,1.37745877]
[1727414950153,1.73795,2645.4,2645.3,1.37745877]
[1727414950651,0.37797,2645.3,2645.2,0.99015877]
[1727414950856,0.78457,2645.3,2645.2,0.99015877]
[1727414953354,0.78457,2645.3,2645.0,2.6200333]
[1727414953553,0.78457,2645.3,2645.1,1.76756725]
[1727414953746,0.78457,2645.3,2645.1,1.4862333]
[1727414955358,0.78457,2645.3,2645.2,1.7679517]
[1727414956358,0.78457,2645.3,2645.2,1.76815921]
[1727414957158,0.78457,2645.3,2645.2,3.25439251]
[1727414961658,0.4066,2645.3,2645.2,3.25439251]
[1727414961867,0.37796,2645.4,2645.2,1.76835987]
[1727414962163,0.37796,2645.4,2645.3,1.76835987]
[1727414962370,0.37796,2645.4,2645.3,2.14785987]
[1727414964755,0.37796,2645.4,2645.3,3.63446658]
[1727414965158,0.37796,2645.4,2645.3,0.3795]
[1727414965363,0.37796,2645.4,2645.3,2.1482799]
[1727414965966,0.37796,2645.4,2645.3,2.14838239]
[1727414968269,0.37796,2645.4,2645.3,2.14840148]
[1727414969976,0.37796,2645.4,2645.3,1.37092431]
[1727414970277,0.37796,2645.4,2645.3,0.3795]
[1727414971374,0.37796,2645.4,2645.3,1.37089144]
[1727414972176,0.37796,2645.4,2645.3,0.3795]
[1727414974073,1.3229,2645.3,2645.2,0.99139144]
[1727414974267,1.3229,2645.3,2644.8,5.1816873]
[1727414974268,5.53883,2645.3,2644.9,0.3701]
[1727414974469,3.58581,2645.0,2644.9,0.3701]
[1727414975076,0.37801,2645.0,2644.9,0.3701]
[1727414975377,3.58581,2645.0,2644.9,0.3701]
[1727414977174,0.37801,2645.0,2644.9,0.3701]
[1727414977774,3.2078,2645.1,2644.9,0.3701]
[1727414977977,3.5858,2645.1,2644.9,0.3701]
[1727414978370,0.378,2645.1,2644.9,0.3701]
[1727414980181,0.378,2645.1,2645.0,1.76681083]
[1727414980982,4.1588,2645.1,2645.0,1.76681083]
[1727414981978,0.378,2645.1,2645.0,1.76681083]
[1727414982580,0.378,2645.1,2645.0,3.25341754]
[1727414982786,0.3902,2645.2,2645.0,1.76681083]
[1727414982787,0.76819,2645.2,2645.0,1.76681083]
[1727414982986,0.3902,2645.2,2645.0,1.48660671]
[1727414983390,0.378,2645.1,2644.9,1.85670671]
[1727414983592,0.378,2645.1,2645.0,1.76721212]
[1727414984696,0.378,2645.1,2645.0,3.25381883]
[1727414985198,0.378,2645.1,2645.0,1.76721212]
[1727414985399,0.378,2645.1,2645.0,3.25381883]
[1727414985594,0.378,2645.1,2645.0,1.76721212]
[1727414987197,0.37801,2645.0,2644.9,1.85670671]
[1727414987399,0.37801,2645.0,2644.9,0.3701]
[1727414988001,0.378,2645.1,2644.9,0.3701]
[1727414988201,0.37801,2645.0,2644.9,0.3701]
[1727414995409,0.37801,2645.0,2644.9,3.62726607]
[1727414996203,0.37801,2645.0,2644.9,3.25716607]
[1727414996402,0.37801,2645.0,2644.9,1.77055936]
[1727414996599,0.37802,2644.9,2644.8,1.48660671]
[1727414996805,0.3785,2644.9,2644.8,3.25724612]
[1727414997213,0.3785,2644.9,2644.8,1.77063941]
[1727414997214,0.75652,2644.9,2644.8,1.77063941]
[1727414997412,0.75652,2644.9,2644.8,3.25724612]
[1727414998307,0.378,2645.1,2644.8,1.77063941]
[1727414998518,0.37801,2645.0,2644.9,4.02834784]
[1727414998812,0.37801,2645.0,2644.9,4.03124277]
[1727415000510,4.48503779,2645.2,2644.9,4.03124277]
[1727415000711,0.37801,2645.0,2644.9,2.25770843]
[1727415001005,0.37801,2645.0,2644.9,4.03157517]
[1727415001714,0.37801,2645.0,2644.9,4.0315623]
[1727415002005,0.37801,2645.0,2644.9,2.54465387]
[1727415002211,0.37801,2645.0,2644.9,4.0315623]
[1727415002413,0.76681,2645.0,2644.9,4.0315623]
[1727415002803,0.76681,2645.0,2644.9,1.77385387]
[1727415003215,0.37804,2644.8,2644.7,1.48690843]
[1727415003417,0.37804,2644.8,2644.7,3.26076109]
[1727415003913,0.3888,2645.0,2644.7,3.26076109]
[1727415004115,3.58582,2644.9,2644.8,1.77385266]
[1727415004516,3.58582,2644.9,2644.8,3.26076109]
[1727415004703,3.58582,2644.9,2644.8,1.77385266]
[1727415007610,0.37804,2644.8,2644.7,1.48690843]
[1727415007804,0.37804,2644.8,2644.7,3.26064336]
[1727415008217,0.37804,2644.8,2644.7,3.26054701]
[1727415008415,0.37804,2644.8,2644.7,3.26060285]
[1727415008614,0.37804,2644.8,2644.7,3.26061586]
[1727415008815,0.37804,2644.8,2644.7,3.26060293]
[1727415009011,0.37804,2644.8,2644.7,1.77373493]
[1727415011722,0.37805,2644.7,2644.6,2.25383094]
[1727415011922,0.77965,2644.7,2644.6,4.02774915]
[1727415012622,4.56125,2644.7,2644.6,2.15811821]
[1727415012822,4.56125,2644.7,2644.6,1.77391821]
[1727415013020,4.1832,2644.7,2644.4,1.48703094]
[1727415013320,0.37807,2644.6,2644.5,1.77402812]
[1727415013716,0.56645227,2644.6,2644.5,1.77402812]
[1727415014517,5.51905227,2644.6,2644.5,1.77402812]
[1727415014915,5.14098227,2644.6,2644.4,1.48703094]
[1727415015122,0.37808,2644.5,2644.4,1.48703094]
[1727415015318,0.37808,2644.5,2644.4,3.26071191]
[1727415017522,0.37808,2644.5,2644.4,1.77368097]
[1727415018321,1.73745227,2644.6,2644.4,1.77368097]
[1727415018629,1.84520284,2644.6,2644.5,1.77368097]
[1727415019824,1.73745227,2644.6,2644.5,1.77368097]
[1727415020031,1.73745227,2644.6,2644.5,3.26073172]
[1727415020222,1.168,2644.7,2644.5,1.77368097]
[1727415020430,4.3758,2644.9,2644.6,2.53838097]
[1727415020731,0.37802,2644.9,2644.8,1.48691733]
[1727415021027,0.37802,2644.9,2644.8,3.2605983]
[1727415023334,0.37802,2644.9,2644.8,3.2607598]
[1727415024830,0.78482,2644.9,2644.8,3.2607598]
[1727415025423,0.78482,2644.9,2644.8,1.77384247]
[1727415026127,0.37804,2644.8,2644.7,1.85901733]
[1727415026331,0.37804,2644.8,2644.7,3.63301526]
[1727415027327,0.3781,2644.4,2644.1,5.19050792]
[1727415027531,0.3781,2644.4,2644.2,0.3948]
[1727415028126,3.6146,2644.9,2644.2,0.3948]
[1727415028127,0.78667,2644.6,2644.2,0.3948]
[1727415028331,0.37809,2644.5,2644.2,0.3948]
[1727415028629,0.78667,2644.6,2644.2,0.3948]
[1727415029023,0.37808,2644.5,2644.2,0.3948]
[1727415031629,0.78668,2644.6,2644.2,0.3948]
[1727415031831,0.37809,2644.5,2644.2,0.3948]
[1727415032628,0.37809,2644.5,2644.2,2.37750792]
[1727415034336,0.3781,2644.4,2644.2,2.37750792]
[1727415034831,0.37811,2644.4,2644.2,0.3948]
[1727415035033,0.3781,2644.4,2644.2,0.3948]
[1727415035330,0.37809,2644.5,2644.2,0.3948]
[1727415035737,0.3781,2644.4,2644.2,0.3948]
[1727415036935,0.37809,2644.5,2644.2,0.3948]
[1727415037327,0.37808,2644.5,2644.2,0.3948]
[1727415037525,0.59504644,2644.6,2644.2,0.3948]
[1727415037735,0.37808,2644.5,2644.2,0.3948]
[1727415038444,0.37808,2644.5,2644.2,2.37750792]
[1727415038825,0.37808,2644.6,2644.2,2.37750792]
[1727415039234,1.168,2644.7,2644.2,2.37750792]
[1727415039431,0.37806,2644.7,2644.3,1.98270792]
[1727415039627,3.31225238,2645.4,2644.6,0.37805]
[1727415039833,3.2078,2645.4,2645.0,3.2078]
[1727415040025,3.2078,2645.4,2645.1,0.3858]
[1727415040026,3.58576,2645.4,2645.1,0.3858]
[1727415040225,3.2078,2645.4,2645.2,0.7543]
[1727415040633,3.58576,2645.4,2645.2,0.7543]
[1727415041638,3.2078,2645.4,2645.2,0.7543]
[1727415042039,0.37797,2645.3,2645.2,0.7543]
[1727415046742,0.37798,2645.2,2644.7,3.2078]
[1727415046942,0.75968,2645.2,2644.8,1.1532]
[1727415047245,0.75968,2645.2,2644.9,1.76394058]
[1727415047445,0.75968,2645.2,2645.0,1.76394058]
[1727415047740,0.75968,2645.2,2645.1,1.7639415]
[1727415049040,0.75968,2645.2,2644.9,3.2078]
[1727415049239,0.75968,2645.2,2645.0,1.76382606]
[1727415049444,0.75968,2645.2,2644.9,3.2078]
[1727415049640,0.75968,2645.2,2645.0,1.76370788]
[1727415049849,0.75968,2645.2,2644.9,3.2078]
[1727415050045,0.3817,2645.2,2645.0,1.76370735]
[1727415050348,0.75968,2645.2,2644.9,3.2078]
[1727415050649,0.75968,2645.2,2645.0,1.76358278]
[1727415050650,0.3817,2645.2,2645.0,1.76358278]
[1727415050850,0.3817,2645.2,2644.9,3.2078]
[1727415051145,0.3817,2645.2,2645.0,1.76356837]
[1727415051347,0.75968,2645.2,2644.9,3.2078]
[1727415051542,0.75968,2645.2,2645.0,1.76345654]
[1727415051850,0.75968,2645.2,2644.9,3.2078]
[1727415052048,0.75968,2645.2,2645.0,1.76346588]
[1727415052349,0.3817,2645.2,2644.9,3.2078]
[1727415052551,0.3817,2645.2,2645.0,1.76333941]
[1727415052751,0.3817,2645.2,2644.9,3.2078]
[1727415052942,0.3817,2645.2,2645.0,1.76334142]
[1727415053247,0.378,2645.1,2644.9,3.2078]
[1727415053841,1.15919,2645.2,2645.0,1.76325707]
[1727415054041,0.75968,2645.2,2644.9,3.2078]
[1727415054241,0.75968,2645.2,2645.0,1.76321955]
[1727415054547,0.75968,2645.2,2644.9,3.2078]
[1727415054747,0.75968,2645.2,2645.0,1.76311989]
[1727415055048,0.378,2645.1,2644.9,3.2078]
[1727415055849,0.37801,2645.0,2644.9,3.2078]
[1727415056054,0.378,2645.1,2644.9,4.97090312]
[1727415056240,0.378,2645.1,2644.9,3.2078]
[1727415056753,0.37801,2645.0,2644.9,3.2078]
[1727415056954,0.37801,2645.0,2644.9,4.97085331]
[1727415057548,0.37801,2645.0,2644.9,3.2078]
[1727415058745,0.37801,2645.0,2644.8,1.1532]
[1727415058944,0.37801,2645.0,2644.9,3.2078]
[1727415060152,0.37801,2645.0,2644.5,1.98270792]
[1727415060153,12.9886,2645.0,2644.5,1.98270792]
[1727415060357,0.37814,2644.1,2644.0,1.1421]
[1727415060653,4.3728,2644.1,2643.6,3.0238]
[1727415060855,0.37816,2644.0,2643.6,3.0238]
[1727415061051,3.2078,2644.1,2643.6,3.0238]
[1727415061251,1.165,2644.1,2643.6,3.0238]
[1727415061442,0.19288019,2644.4,2643.6,3.0238]
[1727415061753,0.19288019,2644.4,2643.6,3.402]
[1727415061754,3.2078,2644.2,2643.6,3.402]
[1727415061953,3.58593,2644.2,2643.6,3.402]
[1727415062649,0.37814,2644.1,2643.6,3.402]
[1727415063153,0.37816,2644.0,2643.6,3.0238]
[1727415063349,0.37815,2644.0,2643.6,3.0238]
[1727415063747,3.2078,2644.2,2643.7,0.3952]
[1727415063945,0.37814,2644.1,2643.7,0.8029]
[1727415064150,0.37815,2644.0,2643.7,0.8029]
[1727415064753,0.37813,2644.2,2643.8,3.7824]
[1727415064951,0.37813,2644.2,2643.7,1.18109]
[1727415065347,1.165,2644.3,2643.7,1.18109]
[1727415065548,0.37812,2644.3,2643.8,0.37817]
[1727415065749,0.37813,2644.2,2643.7,1.18109]
[1727415066056,0.37814,2644.1,2643.7,1.18109]
[1727415066554,0.37813,2644.2,2643.8,0.37818]
[1727415066849,0.37813,2644.2,2643.9,0.3969]
[1727415067057,0.37812,2644.3,2643.9,4.55746]
[1727415067347,4.3728,2644.4,2644.0,0.379]
[1727415067654,0.37812,2644.3,2644.1,0.4041]
[1727415070059,3.58,2644.7,2644.1,0.4041]
[1727415070256,1.165,2644.6,2644.1,0.4041]
[1727415070452,0.37807,2644.6,2644.2,0.37812]
[1727415070647,0.37809,2644.5,2644.3,0.388]
[1727415070852,0.37807,2644.6,2644.4,0.3862]
[1727415071053,4.56236852,2644.7,2644.5,0.4057]
[1727415071654,0.37807,2644.6,2644.5,0.4057]
[1727415073566,4.94042852,2644.7,2644.5,0.4057]
[1727415073760,4.56236852,2644.7,2644.5,0.4057]
[1727415074666,3.39736852,2644.7,2644.5,0.4057]
[1727415075069,0.37807,2644.6,2644.5,0.4057]
[1727415075267,3.58586,2644.7,2644.5,0.4057]
[1727415075562,0.37806,2644.7,2644.5,0.4057]
[1727415075865,3.58586,2644.7,2644.5,0.4057]
[1727415077867,3.2078,2644.7,2644.5,0.4057]
[1727415078073,1.5414,2644.9,2644.5,0.4057]
[1727415078265,1.91943,2644.9,2644.5,0.4057]
[1727415078966,0.37804,2644.8,2644.5,0.4057]
[1727415079665,0.37806,2644.7,2644.5,0.4057]
[1727415080260,0.37806,2644.7,2644.6,1.75303445]
[1727415082967,3.2078,2645.3,2644.6,11.53463445]
[1727415083275,0.19,2646.0,2644.6,11.53463445]
[1727415083276,0.088,2646.0,2645.2,3.2078]
[1727415083574,0.10657475,2646.2,2645.9,3.2078]
[1727415083768,0.7541,2646.3,2646.0,5.35767987]
[1727415083966,4.93699309,2646.8,2646.0,7.3843]
[1727415084273,4.3718,2646.8,2646.1,2.15055028]
[1727415084461,4.3718,2646.8,2646.2,1.75245028]
[1727415084661,1.164,2646.8,2646.3,5.33807028]
[1727415084868,0.7563,2647.0,2646.4,1.75245028]
[1727415085170,0.7563,2647.0,2646.5,2.14975028]
[1727415085358,0.7563,2647.0,2646.5,0.3973]
[1727415085558,0.3752,2647.0,2646.5,0.3973]
[1727415085762,0.3752,2647.0,2646.6,3.2078]
[1727415085962,1.164,2647.3,2646.6,3.2078]
[1727415087274,1.54169,2647.3,2646.6,3.2078]
[1727415087473,0.3752,2647.4,2646.6,3.2078]
[1727415088070,0.3752,2647.4,2646.7,0.37776]
[1727415088569,3.2078,2647.5,2646.8,0.37774]
[1727415088768,3.2078,2647.5,2646.9,0.4105]
[1727415089469,3.2078,2647.5,2647.0,3.2078]
[1727415089962,3.2078,2647.5,2647.1,0.3864]
[1727415093775,3.2078,2647.5,2646.4,3.93761]
[1727415094075,3.2078,2646.8,2646.4,0.4099]
[1727415094277,3.2078,2646.5,2645.8,0.088]
[1727415094474,3.2078,2646.2,2645.6,0.4099]
[1727415094667,3.2078,2646.2,2645.6,0.78782]
[1727415094866,3.2078,2646.2,2645.7,3.2078]
[1727415095776,3.58564,2646.2,2645.7,3.2078]
[1727415096374,3.2078,2646.2,2645.7,3.2078]
[1727415096884,3.58564,2646.2,2645.7,3.2078]
[1727415097779,3.58564,2646.2,2645.2,4.131]
[1727415097780,0.37791,2645.7,2645.0,3.2958]
[1727415097980,3.2078,2645.6,2645.0,3.2078]
[1727415098181,0.753,2645.8,2645.0,3.2078]
[1727415098385,3.2078,2645.7,2645.0,3.2078]
[1727415098981,0.37793,2645.6,2645.0,3.2078]
[1727415099176,0.37795,2645.5,2645.0,3.2078]
[1727415099572,0.37796,2645.4,2645.0,3.2078]
[1727415099980,3.2078,2645.4,2644.8,0.7714]
[1727415100277,3.58576,2645.4,2644.8,0.7714]
[1727415100594,3.2078,2645.4,2644.8,0.7714]
[1727415101181,3.58575,2645.4,2644.8,0.7714]
[1727415101790,3.2078,2645.4,2644.8,1.14944]
[1727415102088,3.58575,2645.4,2644.8,0.7714]
[1727415103185,3.58575,2645.4,2644.8,1.14944]
[1727415106192,3.58576,2645.4,2644.8,1.14944]
[1727415106784,3.2078,2645.4,2644.8,1.14944]
[1727415106981,3.58576,2645.4,2644.8,1.14944]
[1727415107281,3.58576,2645.4,2644.9,0.37802]
[1727415107685,3.58576,2645.4,2644.8,1.14943]
[1727415108392,0.37797,2645.3,2644.8,1.14943]
[1727415110192,0.37797,2645.3,2644.9,0.37802]
[1727415110391,3.2078,2645.4,2644.8,0.7714]
[1727415110685,0.37802,2644.9,2644.8,0.7714]
[1727415110906,3.2078,2645.4,2644.8,0.7714]
[1727415111395,0.37802,2644.9,2644.8,0.7714]
[1727415111683,0.37802,2644.9,2644.8,0.3998]
[1727415113087,3.2078,2645.1,2644.4,3.6035]
[1727415113294,0.3718,2645.0,2644.4,3.98159]
[1727415113591,0.37805,2644.8,2644.4,3.98159]
[1727415113789,0.37806,2644.7,2644.4,3.6035]
[1727415114290,0.3718,2645.0,2644.5,3.7816]
[1727415114291,0.37804,2644.8,2644.5,3.7816]
[1727415114491,0.37804,2644.8,2644.4,3.98159]
[1727415114885,0.37806,2644.7,2644.4,3.6035]
[1727415115686,0.3718,2645.0,2644.4,3.98158]
[1727415115989,0.3718,2645.0,2644.4,3.6035]
[1727415116291,0.37805,2644.7,2644.4,3.6035]
[1727415116695,0.37807,2644.6,2644.4,3.6035]
[1727415117086,0.37808,2644.5,2644.1,4.35853]
[1727415117588,0.37809,2644.5,2644.1,4.35853]
[1727415117784,0.37809,2644.5,2644.1,1.15073]
[1727415117985,0.9451,2644.8,2644.1,0.7726]
[1727415118192,0.37809,2644.5,2644.1,1.15074]
[1727415118387,3.2078,2644.5,2644.1,3.2078]
[1727415118595,0.37812,2644.3,2644.1,3.2078]
[1727415119187,0.3781,2644.4,2644.1,3.2078]
[1727415119490,0.37811,2644.3,2644.1,3.2078]
[1727415120093,0.37812,2644.2,2644.1,3.2078]
[1727415120499,0.37808,2644.5,2643.7,3.5813]
[1727415120799,3.6126,2644.7,2644.0,3.58594]
[1727415120800,0.3781,2644.4,2644.0,3.58594]
[1727415121294,5.1406,2644.7,2643.9,0.75716]
[1727415121590,0.37811,2644.3,2643.9,0.379]
[1727415121898,5.1406,2644.7,2643.9,0.379]
[1727415122199,5.1406,2644.7,2644.0,0.37815]
[1727415122392,0.37809,2644.5,2644.0,0.37815]
[1727415122596,0.3781,2644.4,2644.0,0.37815]
[1727415122796,0.37809,2644.5,2644.1,0.4059]
[1727415122994,5.1406,2644.7,2644.1,0.4059]
[1727415123294,0.3781,2644.4,2644.1,0.4059]
[1727415124094,0.37809,2644.5,2644.1,0.4059]
[1727415125997,3.6126,2644.7,2644.1,0.4059]
[1727415126198,0.37809,2644.5,2644.1,0.4059]
[1727415126898,0.37807,2644.6,2644.1,0.4059]
[1727415127101,0.37809,2644.5,2644.1,0.4059]
[1727415128891,0.37807,2644.6,2644.1,0.78404]
[1727415129098,0.37807,2644.6,2644.2,0.3989]
[1727415129616,0.37805,2644.8,2644.4,3.2078]
[1727415129898,0.7633,2645.0,2644.5,0.37807]
[1727415130099,0.37803,2644.9,2644.5,0.78828]
[1727415130394,0.37803,2644.9,2644.5,0.4102]
[1727415130694,0.37803,2644.9,2644.5,0.78828]
[1727415131498,1.14132,2645.0,2644.5,0.78828]
[1727415132002,0.7633,2645.0,2644.6,0.37806]
[1727415132190,0.3718,2645.0,2644.7,0.4012]
[1727415132496,0.3718,2645.0,2644.7,0.8091]
[1727415133294,0.3718,2645.0,2644.7,4.0169]
[1727415133998,0.3718,2645.0,2644.7,4.39495]
[1727415135199,0.37799,2645.2,2644.7,4.39495]
[1727415135692,0.763,2645.3,2644.7,4.39495]
[1727415135693,1.14097,2645.3,2644.7,4.39495]
[1727415136197,0.763,2645.3,2644.8,0.37804]
[1727415136496,0.763,2645.3,2644.7,4.99768673]
[1727415136693,0.763,2645.3,2644.8,0.37804]
[1727415137095,1.14097,2645.3,2644.8,0.37804]
[1727415137292,0.37798,2645.2,2644.8,0.98078673]
[1727415138401,0.37798,2645.2,2644.9,0.98078673]
[1727415138602,0.37798,2645.2,2644.8,0.98078673]
[1727415138802,0.37798,2645.2,2644.7,4.99768673]
[1727415139004,0.37798,2645.2,2644.8,0.98078673]
[1727415139203,0.763,2645.3,2644.9,0.98078673]
[1727415139397,0.37799,2645.2,2644.9,0.98078673]
[1727415140501,0.37801,2645.0,2644.9,0.98078673]
[1727415140706,0.37801,2645.0,2644.8,0.98078673]
[1727415140903,0.37802,2644.9,2644.8,0.98078673]